[Event "Late-Titled-Tuesday-Blitz-June-18-2024"]
[Site "Chess.com"]
[Date "2024.06.18"]
[Round "6"]
[White "FuenfgegenWilly"]
[Black "Mikayel99"]
[Result "0-1"]
[WhiteElo "2520"]
[BlackElo "2670"]
[TimeControl "180+1"]
[EndTime "15:09:11 PDT"]
[Termination "Mikayel99 won by resignation"]

1. e4 {[%clk 0:02:54.6]} 1... g6 {[%clk 0:03:00.4]} 2. Nc3 {[%clk 0:02:54.3]}
2... Bg7 {[%clk 0:02:59.9]} 3. f4 {[%clk 0:02:55.2]} 3... c5 {[%clk 0:02:58.8]}
4. Nf3 {[%clk 0:02:55.5]} 4... Nc6 {[%clk 0:02:58.7]} 5. Bb5 {[%clk 0:02:56.1]}
5... Nd4 {[%clk 0:02:57.5]} 6. O-O {[%clk 0:02:56.3]} 6... a6 {[%clk 0:02:54.6]}
7. Bd3 {[%clk 0:02:56.3]} 7... e6 {[%clk 0:02:50.1]} 8. Nxd4 {[%clk 0:02:56.3]}
8... cxd4 {[%clk 0:02:50]} 9. Ne2 {[%clk 0:02:56.6]} 9... d6 {[%clk 0:02:47.3]}
10. c3 {[%clk 0:02:56]} 10... dxc3 {[%clk 0:02:47.5]} 11. dxc3 {[%clk
0:02:56.9]} 11... Nf6 {[%clk 0:02:33.7]} 12. f5 {[%clk 0:02:53.6]} 12... O-O
{[%clk 0:02:24.3]} 13. Nf4 {[%clk 0:02:50.7]} 13... e5 {[%clk 0:02:19.7]} 14.
Nd5 {[%clk 0:02:42.2]} 14... Nxd5 {[%clk 0:02:19.4]} 15. exd5 {[%clk 0:02:42.7]}
15... Bxf5 {[%clk 0:02:03.4]} 16. Rxf5 {[%clk 0:02:07]} 16... gxf5 {[%clk
0:02:02.1]} 17. Bxf5 {[%clk 0:02:07.9]} 17... Qb6+ {[%clk 0:01:37.7]} 18. Kh1
{[%clk 0:02:05.7]} 18... Qf2 {[%clk 0:01:35.8]} 19. g4 {[%clk 0:01:31.2]} 19...
e4 {[%clk 0:01:26.3]} 20. Qg1 {[%clk 0:01:16.1]} 20... Qf3+ {[%clk 0:01:13.8]}
21. Qg2 {[%clk 0:01:16.3]} 21... Qd1+ {[%clk 0:01:12.8]} 22. Qg1 {[%clk
0:01:16.7]} 22... Qxd5 {[%clk 0:01:10.2]} 23. Be3 {[%clk 0:01:15.9]} 23... Qc6
{[%clk 0:01:02.7]} 24. Qg3 {[%clk 0:01:07.8]} 24... Rfe8 {[%clk 0:00:17.5]} 25.
Qh4 {[%clk 0:01:00.4]} 25... h6 {[%clk 0:00:17.1]} 26. Rg1 {[%clk 0:00:53.1]}
26... Qb5 {[%clk 0:00:10]} 27. Qf2 {[%clk 0:00:25]} 27... Re5 {[%clk 0:00:05.7]}
28. Rg2 {[%clk 0:00:15.1]} 28... Rae8 {[%clk 0:00:03.8]} 29. h4 {[%clk
0:00:11.7]} 29... Qd3 {[%clk 0:00:03.4]} 30. Kh2 {[%clk 0:00:10.7]} 30... Rb5
{[%clk 0:00:02.3]} 31. g5 {[%clk 0:00:09.6]} 31... Rxf5 {[%clk 0:00:02.1]} 32.
Qxf5 {[%clk 0:00:09.6]} 32... Qxe3 {[%clk 0:00:02.5]} 33. g6 {[%clk 0:00:03.4]}
33... Be5+ {[%clk 0:00:01.7]} 34. Kh1 {[%clk 0:00:01.4]} 34... Qe1+ {[%clk
0:00:02.2]} 35. Rg1 {[%clk 0:00:01.9]} 35... Qxh4+ {[%clk 0:00:02.8]} 36. Kg2
{[%clk 0:00:01.9]} 36... Qg5+ {[%clk 0:00:02.5]} 37. Qxg5 {[%clk 0:00:01.9]}
37... hxg5 {[%clk 0:00:03.4]} 38. gxf7+ {[%clk 0:00:02.5]} 38... Kxf7 {[%clk
0:00:04.3]} 39. Kf2 {[%clk 0:00:02.8]} 39... Ke7 {[%clk 0:00:04.9]} 40. Ke3
{[%clk 0:00:03.7]} 40... Rf8 {[%clk 0:00:05.2]} 41. Rxg5 {[%clk 0:00:04.1]}
41... Bf4+ {[%clk 0:00:05.8]} 0-1

[Event "Late-Titled-Tuesday-Blitz-June-18-2024"]
[Site "Chess.com"]
[Date "2024.06.18"]
[Round "6"]
[White "JoakimVonAnd"]
[Black "malakismayil"]
[Result "1-0"]
[WhiteElo "2743"]
[BlackElo "2559"]
[TimeControl "180+1"]
[EndTime "15:09:25 PDT"]
[Termination "JoakimVonAnd won on time"]

1. d4 {[%clk 0:03:00.4]} 1... d5 {[%clk 0:02:56.6]} 2. Nf3 {[%clk 0:03:00.3]}
2... Nf6 {[%clk 0:02:53.5]} 3. Bf4 {[%clk 0:03:00.8]} 3... e6 {[%clk 0:02:53.8]}
4. e3 {[%clk 0:03:01.4]} 4... Bd6 {[%clk 0:02:50.9]} 5. Bg3 {[%clk 0:03:01.8]}
5... c5 {[%clk 0:02:46.8]} 6. Bb5+ {[%clk 0:02:56.4]} 6... Nc6 {[%clk 0:02:44]}
7. O-O {[%clk 0:02:54.4]} 7... O-O {[%clk 0:02:41]} 8. c3 {[%clk 0:02:49.6]}
8... Ne4 {[%clk 0:02:37.9]} 9. Nbd2 {[%clk 0:02:48.8]} 9... Nxd2 {[%clk
0:02:33.7]} 10. Qxd2 {[%clk 0:02:47.3]} 10... Bxg3 {[%clk 0:02:32.1]} 11. hxg3
{[%clk 0:02:47.1]} 11... cxd4 {[%clk 0:02:26.4]} 12. exd4 {[%clk 0:02:44.1]}
12... Ne7 {[%clk 0:02:25.5]} 13. Bd3 {[%clk 0:02:42.1]} 13... Bd7 {[%clk
0:02:03.4]} 14. a4 {[%clk 0:02:36.2]} 14... Rc8 {[%clk 0:01:58.3]} 15. g4 {[%clk
0:02:31.7]} 15... Qc7 {[%clk 0:01:39.7]} 16. g3 {[%clk 0:02:29.9]} 16... Ng6
{[%clk 0:01:30.8]} 17. Kg2 {[%clk 0:02:28.9]} 17... f6 {[%clk 0:01:28.6]} 18.
Rh1 {[%clk 0:02:24.7]} 18... Be8 {[%clk 0:01:21.3]} 19. Qc2 {[%clk 0:02:01.7]}
19... Qf7 {[%clk 0:01:14]} 20. Rae1 {[%clk 0:01:33.6]} 20... Rc6 {[%clk
0:01:03.5]} 21. Rh5 {[%clk 0:01:20.8]} 21... h6 {[%clk 0:00:58.7]} 22. a5 {[%clk
0:00:49]} 22... Ne7 {[%clk 0:00:26.7]} 23. Qe2 {[%clk 0:00:43.3]} 23... Nc8
{[%clk 0:00:20.3]} 24. Rhh1 {[%clk 0:00:37]} 24... Rd6 {[%clk 0:00:18.5]} 25. g5
{[%clk 0:00:33.5]} 25... fxg5 {[%clk 0:00:11.5]} 26. Nxg5 {[%clk 0:00:33.4]}
26... Qf6 {[%clk 0:00:02.9]} 27. Nxe6 {[%clk 0:00:32.7]} 27... Rf7 {[%clk
0:00:02.2]} 28. Nf4 {[%clk 0:00:29.9]} 28... Bd7 {[%clk 0:00:02.3]} 29. Qe5
{[%clk 0:00:23.4]} 29... Re7 {[%clk 0:00:01.6]} 30. Qxf6 {[%clk 0:00:21.1]}
30... gxf6 {[%clk 0:00:02.1]} 31. Rxe7 {[%clk 0:00:15.3]} 31... Nxe7 {[%clk
0:00:03]} 32. Rxh6 {[%clk 0:00:15.6]} 32... Kf7 {[%clk 0:00:02.9]} 33. Rh7+
{[%clk 0:00:15.7]} 33... Ke8 {[%clk 0:00:03.6]} 34. Rh8+ {[%clk 0:00:16]} 34...
Kf7 {[%clk 0:00:03.6]} 35. Rb8 {[%clk 0:00:16]} 35... b6 {[%clk 0:00:03.4]} 36.
a6 {[%clk 0:00:14.8]} 36... Bc8 {[%clk 0:00:03]} 37. Bb5 {[%clk 0:00:10.3]}
37... Bd7 {[%clk 0:00:02.1]} 38. Bxd7 {[%clk 0:00:09.9]} 38... Rxd7 {[%clk
0:00:03]} 39. Rb7 {[%clk 0:00:10.5]} 39... Ke8 {[%clk 0:00:02.1]} 40. Ne6 {[%clk
0:00:10.9]} 40... Nc6 {[%clk 0:00:01.5]} 41. Ng7+ {[%clk 0:00:07.3]} 41... Ke7
{[%clk 0:00:01.1]} 42. Nf5+ {[%clk 0:00:06.9]} 42... Ke6 {[%clk 0:00:01.5]} 43.
g4 {[%clk 0:00:06.9]} 1-0

[Event "Late-Titled-Tuesday-Blitz-June-18-2024"]
[Site "Chess.com"]
[Date "2024.06.18"]
[Round "6"]
[White "RichardShtivelband"]
[Black "topin8"]
[Result "0-1"]
[WhiteElo "2380"]
[BlackElo "2528"]
[TimeControl "180+1"]
[EndTime "15:09:29 PDT"]
[Termination "topin8 won on time"]

1. d4 {[%clk 0:02:57.4]} 1... Nf6 {[%clk 0:02:59.9]} 2. c4 {[%clk 0:02:56.8]}
2... e6 {[%clk 0:02:59.8]} 3. Nc3 {[%clk 0:02:54.6]} 3... d5 {[%clk 0:02:59.7]}
4. cxd5 {[%clk 0:02:52.7]} 4... exd5 {[%clk 0:03:00.6]} 5. Bf4 {[%clk
0:02:49.5]} 5... Bd6 {[%clk 0:02:58.6]} 6. Bg3 {[%clk 0:02:47]} 6... c6 {[%clk
0:02:48]} 7. e3 {[%clk 0:02:45.3]} 7... Bf5 {[%clk 0:02:44.6]} 8. Qb3 {[%clk
0:02:43]} 8... b6 {[%clk 0:02:39.8]} 9. Rc1 {[%clk 0:02:39.6]} 9... O-O {[%clk
0:02:38.4]} 10. Nf3 {[%clk 0:02:34.7]} 10... Ne4 {[%clk 0:02:00.3]} 11. Be2
{[%clk 0:02:26.8]} 11... Nxg3 {[%clk 0:01:40.5]} 12. hxg3 {[%clk 0:02:25.6]}
12... Qf6 {[%clk 0:01:41.4]} 13. Kf1 {[%clk 0:02:03.7]} 13... Nd7 {[%clk
0:01:35.3]} 14. Nh4 {[%clk 0:01:55.1]} 14... Bxg3 {[%clk 0:01:29.6]} 15. Nxf5
{[%clk 0:01:54.4]} 15... Qxf5 {[%clk 0:01:29.5]} 16. Bf3 {[%clk 0:01:52.8]}
16... Bd6 {[%clk 0:01:25.1]} 17. Ke2 {[%clk 0:01:46]} 17... Nf6 {[%clk
0:01:17.3]} 18. Rh3 {[%clk 0:01:37.4]} 18... Rfe8 {[%clk 0:01:12.2]} 19. Rch1
{[%clk 0:01:35.9]} 19... b5 {[%clk 0:01:06.4]} 20. g4 {[%clk 0:01:31.6]} 20...
Qg6 {[%clk 0:01:02.1]} 21. Rg1 {[%clk 0:01:10.9]} 21... Bf4 {[%clk 0:00:52.3]}
22. Kd2 {[%clk 0:01:01.8]} 22... Bg5 {[%clk 0:00:47.4]} 23. Ne2 {[%clk
0:00:57.1]} 23... c5 {[%clk 0:00:19.5]} 24. dxc5 {[%clk 0:00:48.3]} 24... Rad8
{[%clk 0:00:16.9]} 25. Nd4 {[%clk 0:00:48.2]} 25... Ne4+ {[%clk 0:00:16.9]} 26.
Bxe4 {[%clk 0:00:31.3]} 26... Rxe4 {[%clk 0:00:17.8]} 27. Qd3 {[%clk 0:00:27.3]}
27... Qf6 {[%clk 0:00:16]} 28. Ke2 {[%clk 0:00:20.2]} 28... Rde8 {[%clk
0:00:13.5]} 29. Kf1 {[%clk 0:00:13.6]} 29... Qa6 {[%clk 0:00:04.8]} 30. a3
{[%clk 0:00:12.6]} 30... Qf6 {[%clk 0:00:03]} 31. Rgg3 {[%clk 0:00:12.1]} 31...
h6 {[%clk 0:00:02.4]} 32. Rf3 {[%clk 0:00:12.4]} 32... Qg6 {[%clk 0:00:02.7]}
33. Rhg3 {[%clk 0:00:10.9]} 33... Be7 {[%clk 0:00:02]} 34. Nf5 {[%clk
0:00:09.4]} 34... Bxc5 {[%clk 0:00:02.3]} 35. Qxd5 {[%clk 0:00:08.4]} 35... Bf8
{[%clk 0:00:02.8]} 36. Rf4 {[%clk 0:00:06.5]} 36... Rxf4 {[%clk 0:00:02.5]} 37.
exf4 {[%clk 0:00:06.8]} 37... Qf6 {[%clk 0:00:03.1]} 38. Qd4 {[%clk 0:00:06.1]}
38... Qc6 {[%clk 0:00:02.3]} 39. Re3 {[%clk 0:00:05.3]} 39... Qh1+ {[%clk
0:00:02.4]} 40. Ke2 {[%clk 0:00:05.7]} 40... Rc8 {[%clk 0:00:01.7]} 41. Qd2
{[%clk 0:00:04.3]} 41... Qc6 {[%clk 0:00:01.4]} 42. Ng3 {[%clk 0:00:04.2]} 42...
Qc4+ {[%clk 0:00:01.7]} 43. Rd3 {[%clk 0:00:04]} 43... Re8+ {[%clk 0:00:01.6]}
44. Kf3 {[%clk 0:00:03.6]} 44... Qc6+ {[%clk 0:00:01.5]} 0-1

[Event "Late-Titled-Tuesday-Blitz-June-18-2024"]
[Site "Chess.com"]
[Date "2024.06.18"]
[Round "6"]
[White "Andrei_Skvortsov"]
[Black "maximnovik"]
[Result "1-0"]
[WhiteElo "2766"]
[BlackElo "2572"]
[TimeControl "180+1"]
[EndTime "15:09:32 PDT"]
[Termination "Andrei_Skvortsov won on time"]

1. e4 {[%clk 0:03:00.9]} 1... e5 {[%clk 0:02:59.4]} 2. d4 {[%clk 0:02:59.8]}
2... exd4 {[%clk 0:02:58.6]} 3. Qxd4 {[%clk 0:03:00.7]} 3... Nc6 {[%clk
0:02:58.7]} 4. Qd3 {[%clk 0:03:00.3]} 4... Nf6 {[%clk 0:02:56.7]} 5. Nc3 {[%clk
0:02:54.8]} 5... g6 {[%clk 0:02:56.7]} 6. Bg5 {[%clk 0:02:54.2]} 6... Bg7 {[%clk
0:02:56.6]} 7. O-O-O {[%clk 0:02:54.1]} 7... O-O {[%clk 0:02:56.7]} 8. f4 {[%clk
0:02:53.6]} 8... d6 {[%clk 0:02:53.7]} 9. e5 {[%clk 0:02:49]} 9... dxe5 {[%clk
0:02:40.4]} 10. Qxd8 {[%clk 0:02:49]} 10... Nxd8 {[%clk 0:02:39.6]} 11. fxe5
{[%clk 0:02:41.5]} 11... Nd7 {[%clk 0:02:39.2]} 12. Nf3 {[%clk 0:02:36.6]} 12...
Ne6 {[%clk 0:02:33.3]} 13. Nd5 {[%clk 0:02:36.1]} 13... Nxg5 {[%clk 0:02:25.9]}
14. Nxg5 {[%clk 0:02:36.4]} 14... Nxe5 {[%clk 0:02:21.6]} 15. Nxc7 {[%clk
0:02:36.5]} 15... Bh6 {[%clk 0:01:45.3]} 16. Nxa8 {[%clk 0:02:22.9]} 16... Bxg5+
{[%clk 0:01:43.5]} 17. Kb1 {[%clk 0:02:23.3]} 17... Ng4 {[%clk 0:01:21.6]} 18.
Re1 {[%clk 0:02:15]} 18... Bf4 {[%clk 0:00:58.4]} 19. g3 {[%clk 0:02:07.9]}
19... Bd6 {[%clk 0:00:57.5]} 20. Bg2 {[%clk 0:01:45.3]} 20... b6 {[%clk
0:00:57.3]} 21. Rd1 {[%clk 0:01:39.7]} 21... Bb8 {[%clk 0:00:38.5]} 22. Rd2
{[%clk 0:01:35.8]} 22... Be6 {[%clk 0:00:37.4]} 23. Re1 {[%clk 0:01:28]} 23...
Nxh2 {[%clk 0:00:34.4]} 24. Re3 {[%clk 0:01:22.1]} 24... Ng4 {[%clk 0:00:33.6]}
25. Ra3 {[%clk 0:01:18.4]} 25... h5 {[%clk 0:00:24.5]} 26. Bb7 {[%clk
0:01:03.3]} 26... Kg7 {[%clk 0:00:23.9]} 27. Rd1 {[%clk 0:00:57]} 27... Re8
{[%clk 0:00:21.9]} 28. Bc6 {[%clk 0:00:56.2]} 28... Re7 {[%clk 0:00:18.5]} 29.
Rd8 {[%clk 0:00:52.8]} 29... Bf5 {[%clk 0:00:17.8]} 30. b4 {[%clk 0:00:38.4]}
30... Re1+ {[%clk 0:00:15.6]} 31. Kb2 {[%clk 0:00:38.2]} 31... Be5+ {[%clk
0:00:16.1]} 32. Kb3 {[%clk 0:00:38]} 32... Be6+ {[%clk 0:00:15.3]} 33. Ka4
{[%clk 0:00:35.6]} 33... Re2 {[%clk 0:00:10.3]} 34. Kb5 {[%clk 0:00:32.1]} 34...
Rxc2 {[%clk 0:00:09.4]} 35. Rxa7 {[%clk 0:00:31.8]} 35... Bc4+ {[%clk
0:00:08.7]} 36. Kxb6 {[%clk 0:00:31]} 36... Bxg3 {[%clk 0:00:08.2]} 37. a4
{[%clk 0:00:24.2]} 37... Bf2+ {[%clk 0:00:08]} 38. Ka5 {[%clk 0:00:20.7]} 38...
Bxa7 {[%clk 0:00:07.4]} 39. b5 {[%clk 0:00:19.7]} 39... Bc5 {[%clk 0:00:06.9]}
40. b6 {[%clk 0:00:19.7]} 40... Rb2 {[%clk 0:00:07.1]} 41. b7 {[%clk 0:00:19.6]}
41... Ne5 {[%clk 0:00:06.4]} 42. Bb5 {[%clk 0:00:17.1]} 42... Bxb5 {[%clk
0:00:04.8]} 43. Rg8+ {[%clk 0:00:12.7]} 43... Kxg8 {[%clk 0:00:04.1]} 44. b8=Q+
{[%clk 0:00:12.9]} 44... Kg7 {[%clk 0:00:04.4]} 45. Qxe5+ {[%clk 0:00:13.3]}
45... Kh7 {[%clk 0:00:03.6]} 46. Qxb2 {[%clk 0:00:13.9]} 46... Bd7 {[%clk
0:00:02.4]} 47. Nb6 {[%clk 0:00:13.9]} 47... Be6 {[%clk 0:00:01.4]} 48. Qc2
{[%clk 0:00:12.8]} 1-0

[Event "Late-Titled-Tuesday-Blitz-June-18-2024"]
[Site "Chess.com"]
[Date "2024.06.18"]
[Round "6"]
[White "Byniolus"]
[Black "amintabatabaei"]
[Result "0-1"]
[WhiteElo "2756"]
[BlackElo "3034"]
[TimeControl "180+1"]
[EndTime "15:09:35 PDT"]
[Termination "amintabatabaei won on time"]

1. d4 {[%clk 0:03:00.9]} 1... a6 {[%clk 0:02:57.2]} 2. Nf3 {[%clk 0:02:59.2]}
2... e6 {[%clk 0:02:57]} 3. Bf4 {[%clk 0:02:59.3]} 3... b5 {[%clk 0:02:56.7]} 4.
e3 {[%clk 0:02:59.5]} 4... Bb7 {[%clk 0:02:57.4]} 5. h3 {[%clk 0:02:59.6]} 5...
Nf6 {[%clk 0:02:57.4]} 6. Be2 {[%clk 0:02:59.3]} 6... Be7 {[%clk 0:02:57.6]} 7.
O-O {[%clk 0:02:59.5]} 7... O-O {[%clk 0:02:58.4]} 8. a4 {[%clk 0:02:58.7]} 8...
b4 {[%clk 0:02:57.9]} 9. c3 {[%clk 0:02:59.3]} 9... a5 {[%clk 0:02:56.5]} 10.
Bh2 {[%clk 0:02:56.7]} 10... h6 {[%clk 0:02:56.2]} 11. Nbd2 {[%clk 0:02:56.2]}
11... c5 {[%clk 0:02:55.7]} 12. cxb4 {[%clk 0:02:48.6]} 12... cxd4 {[%clk
0:02:52.1]} 13. Nxd4 {[%clk 0:02:49.5]} 13... Bxb4 {[%clk 0:02:51.5]} 14. Nc4
{[%clk 0:02:47.6]} 14... d5 {[%clk 0:02:42.2]} 15. Ne5 {[%clk 0:02:44.4]} 15...
Nbd7 {[%clk 0:02:38.5]} 16. Nec6 {[%clk 0:02:33.8]} 16... Bxc6 {[%clk
0:02:38.6]} 17. Nxc6 {[%clk 0:02:34.1]} 17... Qb6 {[%clk 0:02:39.5]} 18. Nxb4
{[%clk 0:02:30.4]} 18... Qxb4 {[%clk 0:02:40.4]} 19. Bb5 {[%clk 0:02:17.1]}
19... Rfc8 {[%clk 0:02:34.8]} 20. Qe2 {[%clk 0:02:08.4]} 20... Nc5 {[%clk
0:02:33.2]} 21. Be5 {[%clk 0:02:01.7]} 21... Nfd7 {[%clk 0:02:01.6]} 22. Bc3
{[%clk 0:01:55.2]} 22... Qe4 {[%clk 0:02:01.9]} 23. Rfd1 {[%clk 0:01:47.5]}
23... Nf6 {[%clk 0:01:46.7]} 24. Bxf6 {[%clk 0:01:32.2]} 24... gxf6 {[%clk
0:01:47.6]} 25. Rd4 {[%clk 0:01:32.2]} 25... Qe5 {[%clk 0:01:43.1]} 26. Rad1
{[%clk 0:01:10.8]} 26... Kh7 {[%clk 0:01:41.3]} 27. Rg4 {[%clk 0:00:46.3]} 27...
f5 {[%clk 0:01:40.7]} 28. Rg3 {[%clk 0:00:43.1]} 28... Rg8 {[%clk 0:01:40.7]}
29. Rxg8 {[%clk 0:00:38.4]} 29... Rxg8 {[%clk 0:01:41.6]} 30. Qd2 {[%clk
0:00:34.7]} 30... Ne4 {[%clk 0:01:37.2]} 31. Qd4 {[%clk 0:00:24]} 31... Qc7
{[%clk 0:01:29.3]} 32. Bd3 {[%clk 0:00:22.3]} 32... Nxf2 {[%clk 0:01:10.1]} 33.
Kxf2 {[%clk 0:00:16.5]} 33... Qg3+ {[%clk 0:01:10.5]} 34. Ke2 {[%clk 0:00:13]}
34... Qxg2+ {[%clk 0:01:11.4]} 35. Ke1 {[%clk 0:00:13.7]} 35... Rg3 {[%clk
0:00:57.2]} 36. Be2 {[%clk 0:00:11]} 36... Rxh3 {[%clk 0:00:44]} 37. Kd2 {[%clk
0:00:11.4]} 37... Rh2 {[%clk 0:00:39.5]} 38. Re1 {[%clk 0:00:11.3]} 38... Qg3
{[%clk 0:00:39.9]} 39. Qf4 {[%clk 0:00:10]} 39... Qg2 {[%clk 0:00:26.2]} 40. b4
{[%clk 0:00:07.7]} 40... axb4 {[%clk 0:00:25.3]} 41. Qxb4 {[%clk 0:00:08.6]}
41... Qg8 {[%clk 0:00:15.5]} 42. a5 {[%clk 0:00:07.5]} 42... Qa8 {[%clk
0:00:16]} 43. Qb6 {[%clk 0:00:03.8]} 43... Qc8 {[%clk 0:00:07.9]} 44. a6 {[%clk
0:00:02.9]} 44... Qc4 {[%clk 0:00:08.6]} 45. a7 {[%clk 0:00:02.8]} 45... Qa2+
{[%clk 0:00:08.9]} 46. Kd3 {[%clk 0:00:02.5]} 46... Qa3+ {[%clk 0:00:08.5]} 47.
Kd4 {[%clk 0:00:02.3]} 47... Rh4+ {[%clk 0:00:08.1]} 48. Ke5 {[%clk 0:00:02.1]}
48... Qe7 {[%clk 0:00:06.7]} 0-1

[Event "Late-Titled-Tuesday-Blitz-June-18-2024"]
[Site "Chess.com"]
[Date "2024.06.18"]
[Round "6"]
[White "Zhigalko_Sergei"]
[Black "DeTimmerman"]
[Result "1/2-1/2"]
[WhiteElo "2975"]
[BlackElo "2749"]
[TimeControl "180+1"]
[EndTime "15:09:39 PDT"]
[Termination "Game drawn by repetition"]

1. e4 {[%clk 0:03:00.9]} 1... e5 {[%clk 0:02:59.8]} 2. Nf3 {[%clk 0:03:00.4]}
2... Nc6 {[%clk 0:03:00.5]} 3. Bb5 {[%clk 0:03:00.2]} 3... f5 {[%clk 0:03:00.1]}
4. d3 {[%clk 0:03:00.1]} 4... fxe4 {[%clk 0:03:00.2]} 5. dxe4 {[%clk 0:03:01]}
5... Nf6 {[%clk 0:03:00.9]} 6. O-O {[%clk 0:03:00.8]} 6... d6 {[%clk 0:03:01.5]}
7. Nc3 {[%clk 0:02:52.8]} 7... Be7 {[%clk 0:03:01.7]} 8. Bc4 {[%clk 0:02:52.9]}
8... Na5 {[%clk 0:03:00.1]} 9. Qd3 {[%clk 0:02:52.9]} 9... Nxc4 {[%clk 0:03:00]}
10. Qxc4 {[%clk 0:02:53.8]} 10... Qd7 {[%clk 0:02:56.2]} 11. Bg5 {[%clk
0:02:44.8]} 11... Qc6 {[%clk 0:02:55.9]} 12. Qb3 {[%clk 0:02:34.4]} 12... Qb6
{[%clk 0:02:55.9]} 13. Bxf6 {[%clk 0:02:26.8]} 13... Bxf6 {[%clk 0:02:43.2]} 14.
Qc4 {[%clk 0:02:16.6]} 14... Qc6 {[%clk 0:02:40.7]} 15. Qb3 {[%clk 0:02:07.5]}
15... Qb6 {[%clk 0:02:40.6]} 16. Qc4 {[%clk 0:01:42.3]} 16... Qc6 {[%clk
0:02:40.6]} 17. Qd3 {[%clk 0:01:43]} 17... O-O {[%clk 0:02:40.3]} 18. Nd5 {[%clk
0:01:43.6]} 18... Be6 {[%clk 0:02:26.5]} 19. c4 {[%clk 0:01:41.8]} 19... a5
{[%clk 0:02:22.6]} 20. b3 {[%clk 0:01:29.8]} 20... b6 {[%clk 0:02:19.9]} 21.
Rad1 {[%clk 0:01:24.5]} 21... h6 {[%clk 0:02:11.5]} 22. Qe3 {[%clk 0:01:24.3]}
22... Rf7 {[%clk 0:02:08.9]} 23. Rd3 {[%clk 0:01:24.4]} 23... Raf8 {[%clk
0:02:05.9]} 24. Nxf6+ {[%clk 0:01:07.6]} 24... Rxf6 {[%clk 0:02:05.6]} 25. Nd2
{[%clk 0:01:08.3]} 25... Qe8 {[%clk 0:02:01.5]} 26. f3 {[%clk 0:01:07]} 26... g5
{[%clk 0:01:55]} 27. h3 {[%clk 0:01:04.9]} 27... Qg6 {[%clk 0:01:54.6]} 28. g4
{[%clk 0:00:31.7]} 28... h5 {[%clk 0:01:54.5]} 29. Qe2 {[%clk 0:00:32]} 29...
hxg4 {[%clk 0:01:51.2]} 30. hxg4 {[%clk 0:00:31.2]} 30... Qh7 {[%clk 0:01:44.5]}
31. Qe3 {[%clk 0:00:22]} 31... Rh6 {[%clk 0:01:25.2]} 32. Qxg5+ {[%clk
0:00:18.7]} 32... Kh8 {[%clk 0:01:25.5]} 33. Kf2 {[%clk 0:00:15.9]} 33... Rg6
{[%clk 0:01:18.5]} 34. Qh5 {[%clk 0:00:12.8]} 34... Bxg4 {[%clk 0:01:09.6]} 35.
Qxh7+ {[%clk 0:00:12.4]} 35... Kxh7 {[%clk 0:01:10.5]} 36. Rh1+ {[%clk
0:00:09.3]} 36... Kg7 {[%clk 0:01:10.6]} 37. Rg1 {[%clk 0:00:08.9]} 37... Be6
{[%clk 0:01:11]} 38. Rxg6+ {[%clk 0:00:09.5]} 38... Kxg6 {[%clk 0:01:11.9]} 39.
Nf1 {[%clk 0:00:07.4]} 39... a4 {[%clk 0:01:04.5]} 40. Ne3 {[%clk 0:00:06.2]}
40... axb3 {[%clk 0:01:04.7]} 41. axb3 {[%clk 0:00:07]} 41... Ra8 {[%clk
0:01:05.3]} 42. Nd5 {[%clk 0:00:06.8]} 42... Bxd5 {[%clk 0:01:05.6]} 43. cxd5
{[%clk 0:00:07.6]} 43... Ra2+ {[%clk 0:01:01.7]} 44. Kg3 {[%clk 0:00:07.8]}
44... Rc2 {[%clk 0:01:01.9]} 45. b4 {[%clk 0:00:08]} 45... Rc4 {[%clk 0:01:01]}
46. b5 {[%clk 0:00:07.9]} 46... Rc5 {[%clk 0:01:00.8]} 47. Rb3 {[%clk
0:00:07.1]} 47... Kg5 {[%clk 0:01:01.3]} 48. Rb2 {[%clk 0:00:06.9]} 48... Kh5
{[%clk 0:00:58.8]} 49. Rh2+ {[%clk 0:00:06.4]} 49... Kg5 {[%clk 0:00:59.4]} 50.
Rb2 {[%clk 0:00:06.7]} 50... Kh5 {[%clk 0:00:59.6]} 51. Rb3 {[%clk 0:00:06.8]}
51... Kg5 {[%clk 0:00:59.9]} 52. Rb4 {[%clk 0:00:07.3]} 52... Kh5 {[%clk
0:00:59.9]} 53. Rb1 {[%clk 0:00:08]} 53... Kg5 {[%clk 0:01:00.3]} 54. Rb3 {[%clk
0:00:08.7]} 54... Rc1 {[%clk 0:00:54.6]} 55. Ra3 {[%clk 0:00:08.3]} 55... Rc5
{[%clk 0:00:54.7]} 56. Ra7 {[%clk 0:00:05.9]} 56... Rc2 {[%clk 0:00:54.5]} 57.
Ra8 {[%clk 0:00:05.5]} 57... Rc5 {[%clk 0:00:54.1]} 58. Rc8 {[%clk 0:00:05.4]}
58... Rc2 {[%clk 0:00:53.2]} 59. Rd8 {[%clk 0:00:04.5]} 59... Rc5 {[%clk
0:00:52.9]} 60. Rd7 {[%clk 0:00:04.7]} 60... Rc2 {[%clk 0:00:49.9]} 61. Rg7+
{[%clk 0:00:04.8]} 61... Kf6 {[%clk 0:00:49.9]} 62. Rh7 {[%clk 0:00:04.7]} 62...
Kg5 {[%clk 0:00:46.3]} 63. Rg7+ {[%clk 0:00:04.4]} 63... Kf6 {[%clk 0:00:46.5]}
64. Rd7 {[%clk 0:00:05.3]} 64... Kg5 {[%clk 0:00:45.9]} 65. Rg7+ {[%clk
0:00:05.5]} 1/2-1/2